fUST/lending_fUST_20250527
["ID","MTS","AMOUNT","RATE_DAILY","PERIOD"]
[362463596,1748315443186,-430.0,0.00021913,2]
[362463597,1748315443200,-1485.05,0.00021913,2]
[362463598,1748315443215,-500.0,0.00021917,2]
[362463599,1748315443227,-401.59389232,0.00021917,2]
[362463600,1748315443239,-500.0,0.00022018,2]
[362463601,1748315443252,-535.80829393,0.00022018,2]
[362463602,1748315443264,-500.0,0.00022018,2]
[362463603,1748315443276,-500.0,0.00022018,2]
[362463604,1748315443289,-500.0,0.00022018,2]
[362463605,1748315443302,-156.72498759,0.00022075,5]
[362463606,1748315443315,-829.46,0.00022137,2]
[362463607,1748315443328,-2143.75,0.00022137,2]
[362463609,1748315443342,-1040.01,0.00022137,2]
[362463610,1748315443354,-528.99,0.00022137,2]
[362463611,1748315443367,-430.0,0.00022137,2]
[362463612,1748315443381,-1331.26,0.00022137,2]
[362463613,1748315443394,-1781.01,0.00022137,2]
[362463614,1748315443404,-430.0,0.00022138,2]
[362463615,1748315443414,-870.77,0.00022139,2]
[362463616,1748315443424,-430.0,0.00022139,2]
[362463617,1748315443434,-976.95,0.00022187,2]
[362463618,1748315443444,-430.0,0.00022187,2]
[362463619,1748315443453,-1485.05,0.00022187,2]
[362463620,1748315443463,-829.46,0.00022411,2]
[362463621,1748315443473,-2143.75,0.00022411,2]
[362463622,1748315443483,-1040.01,0.00022411,2]
[362463623,1748315443493,-528.99,0.00022411,2]
[362463624,1748315443502,-430.0,0.00022411,2]
[362463625,1748315443511,-1331.26,0.00022411,2]
[362463626,1748315443521,-1781.01,0.00022411,2]
[362463627,1748315443531,-271.17961774,0.00022412,2]
[362463628,1748315443540,-870.77,0.00022413,2]
[362463629,1748315443549,-239.44,0.00022413,2]
[362463630,1748315443558,-976.95,0.00022461,2]
[362463631,1748315443567,-430.0,0.00022461,2]
[362463632,1748315443576,-1485.05,0.00022461,2]
[362463633,1748315443586,-1000.0,0.00022566,2]
[362463634,1748315443595,-1000.0,0.00022566,2]
[362463635,1748315443604,-503.31054604,0.00022566,2]
[362463636,1748315443614,-161.78519642,0.00022566,2]
[362463637,1748315443623,-207.4,0.00022567,2]
[362463638,1748315443633,-829.46,0.00022685,2]
[362463639,1748315443642,-2143.75,0.00022685,2]
[362463640,1748315443652,-1040.01,0.00022685,2]
[362463641,1748315443662,-528.99,0.00022685,2]
[362463642,1748315443671,-430.0,0.00022685,2]
[362463643,1748315443855,-1331.26,0.00022685,2]
[362463644,1748315443870,-1781.01,0.00022685,2]
[362463645,1748315443880,-151.0,0.00022686,2]
[362463646,1748315443890,-673.04640371,0.00022687,2]
[362463647,1748315443903,-197.72359629,0.00022687,2]
[362463648,1748315443912,-902.24350374,0.00022735,2]
[362463649,1748315443924,-74.70649626,0.00022735,2]
[362463650,1748315443934,-430.0,0.00022735,2]
[362463651,1748315443944,-1005.72941835,0.00022735,2]
[362463652,1748315443958,-479.32058165,0.00022735,2]
[362463653,1748315443967,-829.46,0.00022959,2]
[362463654,1748315443977,-2143.75,0.00022959,2]
[362463655,1748315443986,-1040.01,0.00022959,2]
[362463656,1748315443997,-528.99,0.00022959,2]
[362463657,1748315444007,-430.0,0.00022959,2]
[362463658,1748315444016,-1331.26,0.00022959,2]
[362463659,1748315444026,-1781.01,0.00022959,2]
[362463660,1748315444036,-870.77,0.00022961,2]
[362463661,1748315444046,-976.95,0.00023009,2]
[362463662,1748315444056,-486.56,0.00023009,2]
[362463663,1748315444065,-481.01905971,0.00023009,2]
[362463664,1748315444079,-1004.03094029,0.00023009,2]
[362463665,1748315444089,-617.10674572,0.00023114,2]
[362463666,1748315444099,-1505.74164798,0.00023114,2]
[362463667,1748315444109,-829.46,0.00023233,2]
[362463668,1748315444119,-2143.75,0.00023233,2]
[362463669,1748315444128,-1040.01,0.00023233,2]
[362463670,1748315444137,-528.99,0.00023233,2]
[362463671,1748315444147,-1331.26,0.00023233,2]
[362463672,1748315444157,-1781.01,0.00023233,2]
[362463673,1748315444166,-870.77,0.00023235,2]
[362463674,1748315444176,-976.95,0.00023283,2]
[362463675,1748315444186,-1485.05,0.00023283,2]
[362463676,1748315444195,-500.0,0.00023356,2]
[362463677,1748315444209,-829.46,0.00023507,2]
[362463678,1748315444224,-2143.75,0.00023507,2]
[362463679,1748315444233,-1040.01,0.00023507,2]
[362463680,1748315444242,-528.99,0.00023507,2]
[362463681,1748315444251,-1331.26,0.00023507,2]
[362463682,1748315444261,-1781.01,0.00023507,2]
[362463683,1748315444270,-870.77,0.00023509,2]
[362463684,1748315444279,-520.8780358,0.0002352,3]
[362463685,1748315444292,-30.1344162,0.0002352,3]
[362463686,1748315444302,-976.95,0.00023557,2]
[362463687,1748315444311,-207.83679178,0.00023557,2]
[362463692,1748315446333,-160.0,0.00020646,2]
[362463693,1748315446343,-494.60364045,0.00023557,2]
[362463694,1748315446439,-782.60956777,0.00023557,2]
[362463695,1748315446449,-1547.11071891,0.00023699,7]
[362463696,1748315446458,-829.46,0.00023781,2]
[362463697,1748315446467,-2143.75,0.00023781,2]
[362463698,1748315446477,-1040.01,0.00023781,2]
[362463699,1748315446487,-528.99,0.00023781,2]
[362463700,1748315446496,-1331.26,0.00023781,2]
[362463701,1748315446506,-1781.01,0.00023781,2]
[362463702,1748315446515,-870.77,0.00023783,2]
[362463703,1748315446524,-976.95,0.00023831,2]
[362463704,1748315446534,-1485.05,0.00023831,2]
[362463705,1748315446543,-614.08551382,0.000239,2]
[362463706,1748315446553,-215.0738,0.00023936,2]
[362463707,1748315446563,-160.51868029,0.00023999,2]
[362463708,1748315446572,-214.94733457,0.00024,2]
[362463709,1748315446583,-3314.00326828,0.00024,3]
[362463710,1748315446592,-27903.77377644,0.00024,4]
[362463711,1748315446602,-4622.42204764,0.00024,4]
[362463714,1748316430127,-300.0,0.0001939,2]
[362463715,1748316430150,-1200.0,0.00019391,2]
[362463716,1748316430172,-300.0,0.00019391,2]
[362463717,1748316430194,-165.73611704,0.00019391,2]
[362463718,1748316430215,-370.71861238,0.00019391,2]
[362463719,1748316430237,-471.50060269,0.00019391,2]
[362463720,1748316438135,-28.49939731,0.00019391,2]
[362463721,1748316438159,-500.0,0.00019391,2]
[362463722,1748316438182,-500.0,0.00019391,2]
[362463723,1748316438208,-500.0,0.00019391,2]
[362463724,1748316438231,-500.0,0.00019391,2]
[362463725,1748316438253,-500.0,0.00019391,2]
[362463726,1748316438278,-500.0,0.00019391,2]
[362463727,1748316438301,-500.0,0.00019391,2]
[362463728,1748316438328,-466.568322,0.00019391,2]
[362463729,1748316438353,-500.0,0.00019391,2]
[362463730,1748316438379,-500.0,0.00019391,2]
[362463731,1748316438401,-500.0,0.00019391,2]
[362463732,1748316438424,-500.0,0.00019391,2]
[362463733,1748316438447,-500.0,0.00019391,2]
[362463734,1748316438470,-500.0,0.00019391,2]
[362463735,1748316438495,-263.81908385,0.00019391,2]
[362463736,1748316445094,-152.5936379,0.00019391,2]
[362463738,1748316454095,-83.58727825,0.00019391,2]
[362463739,1748316454120,-500.0,0.00019391,2]
[362463740,1748316454145,-500.0,0.00019391,2]
[362463741,1748316454173,-500.0,0.00019391,2]
[362463742,1748316454199,-500.0,0.00019391,2]
[362463743,1748316454225,-500.0,0.00019391,2]
[362463744,1748316454252,-500.0,0.00019391,2]
[362463745,1748316454277,-193.75408914,0.00019391,2]
[362463750,1748316549099,-2583.90785526,0.00018,2]
[362463751,1748316549121,-15974.04625777,0.00018394,2]
[362463752,1748316558078,-59.90337093,0.00018394,2]
[362463753,1748316558100,-202.42085338,0.000189,2]
[362463776,1748316632512,-122.88245029,0.000189,2]
[362463777,1748316632522,-190.67327,0.00019178,2]
[362463778,1748316632533,-876.92069412,0.00019291,2]
[362463779,1748316632542,-430.0,0.0001939,2]
[362463780,1748316632553,-500.0,0.0001939,2]
[362463781,1748316632562,-500.0,0.0001939,2]
[362463782,1748316632572,-500.0,0.0001939,2]
[362463784,1748316632583,-500.0,0.0001939,2]
[362463786,1748316632593,-500.0,0.0001939,2]
[362463787,1748316632603,-500.0,0.0001939,2]
[362463789,1748316632613,-500.0,0.0001939,2]
[362463791,1748316632623,-500.0,0.0001939,2]
[362463792,1748316632633,-500.0,0.0001939,2]
[362463793,1748316632643,-500.0,0.0001939,2]
[362463795,1748316632654,-500.0,0.0001939,2]
[362463797,1748316632664,-500.0,0.0001939,2]
[362463798,1748316632673,-500.0,0.0001939,2]
[362463800,1748316632683,-500.0,0.0001939,2]
[362463801,1748316632694,-500.0,0.0001939,2]
[362463802,1748316632704,-373.72827514,0.0001939,2]
[362463803,1748316632714,-634.04000605,0.0001939,2]
[362463804,1748316632726,-500.0,0.0001939,2]
[362463805,1748316632736,-500.0,0.0001939,2]
[362463806,1748316632746,-500.0,0.0001939,2]
[362463807,1748316632756,-500.0,0.0001939,2]
[362463808,1748316632767,-500.0,0.0001939,2]
[362463809,1748316632777,-500.0,0.0001939,2]
[362463810,1748316632786,-500.0,0.0001939,2]
[362463811,1748316632797,-2847.58807306,0.00019391,2]
[362463812,1748316632806,-430.0,0.00019391,2]
[362463813,1748316632817,-430.0,0.00019391,2]
[362463814,1748316632826,-430.0,0.00019391,2]
[362463815,1748316632836,-430.0,0.00019391,2]
[362463816,1748316632847,-430.0,0.00019391,2]
[362463817,1748316632857,-672.78,0.00019391,2]
[362463818,1748316632868,-440.34944168,0.00019391,2]
[362463819,1748316632877,-430.0,0.00019391,2]
[362463820,1748316632888,-430.0,0.00019392,2]
[362463821,1748316632897,-743.35,0.00019392,2]
[362463822,1748316632907,-430.0,0.00019392,2]
[362463823,1748316632917,-430.0,0.00019392,2]
[362463824,1748316632926,-449.28323962,0.00019392,2]
[362463825,1748316632936,-430.0,0.00019392,2]
[362463826,1748316632946,-951.72,0.00019392,2]
[362463827,1748316632956,-441.08,0.00019392,2]
[362463828,1748316632966,-430.0,0.00019392,2]
[362463829,1748316632976,-430.0,0.00019392,2]
[362463830,1748316632986,-445.8948729,0.00019392,2]
[362463831,1748316632995,-430.0,0.00019392,2]
[362463832,1748316633005,-430.0,0.00019392,2]
[362463833,1748316633015,-430.0,0.00019392,2]
[362463834,1748316633025,-438.55036204,0.00019392,2]
[362463835,1748316633034,-430.0,0.00019392,2]
[362463836,1748316633044,-430.0,0.00019392,2]
[362463837,1748316633054,-430.0,0.00019392,2]
[362463838,1748316633064,-430.0,0.00019392,2]
[362463839,1748316633074,-430.0,0.00019392,2]
[362463840,1748316633084,-430.0,0.00019392,2]
[362463841,1748316633094,-430.0,0.00019392,2]
[362463842,1748316633103,-430.0,0.00019392,2]
[362463843,1748316633113,-277.24524105,0.00019394,2]
[362463844,1748316633124,-430.0,0.00019395,2]
[362463845,1748316633134,-513.94695903,0.00019395,2]
[362463846,1748316633143,-430.0,0.00019395,2]
[362463847,1748316633153,-430.0,0.00019395,2]
[362463848,1748316633163,-430.0,0.00019395,2]
[362463849,1748316633173,-523.22564755,0.00019395,2]
[362463850,1748316633183,-444.42320171,0.00019395,2]
[362463851,1748316633193,-376.66228101,0.00019395,2]
[362463852,1748316633203,-430.0,0.00019395,2]
[362463853,1748316633212,-430.0,0.00019395,2]
[362463854,1748316633222,-463.82136979,0.00019395,2]
[362463855,1748316633232,-430.0,0.00019395,2]
[362463856,1748316633242,-430.0,0.00019395,2]
[362463857,1748316633252,-430.0,0.00019395,2]
[362463858,1748316633262,-430.0,0.00019395,2]
[362463859,1748316633272,-430.0,0.00019395,2]
[362463860,1748316633282,-372.0462459,0.00019395,2]
[362463861,1748316633292,-445.79176838,0.00019395,2]
[362463862,1748316633302,-430.0,0.00019395,2]
[362463863,1748316633312,-430.0,0.00019395,2]
[362463864,1748316633322,-430.0,0.00019395,2]
[362463865,1748316633332,-438.44883724,0.00019395,2]
[362463866,1748316633343,-430.0,0.00019395,2]
[362463867,1748316633353,-430.0,0.00019395,2]
[362463868,1748316633362,-430.0,0.00019395,2]
[362463869,1748316633372,-447.64337091,0.00019395,2]
[362463870,1748316633382,-430.0,0.00019395,2]
[362463871,1748316633391,-430.0,0.00019395,2]
[362463872,1748316633401,-430.0,0.00019395,2]
[362463873,1748316633411,-430.0,0.00019395,2]
[362463874,1748316633421,-430.0,0.00019395,2]
[362463875,1748316633430,-430.0,0.00019395,2]
[362463876,1748316633440,-430.0,0.00019395,2]
[362463877,1748316633449,-444.86606361,0.00019395,2]
[362463878,1748316633459,-430.0,0.00019395,2]
[362463879,1748316633469,-430.0,0.00019395,2]
[362463880,1748316633479,-430.0,0.00019395,2]
[362463881,1748316633491,-430.0,0.00019395,2]
[362463882,1748316633500,-430.0,0.00019395,2]
[362463883,1748316633510,-430.0,0.00019395,2]
[362463884,1748316633519,-430.0,0.00019395,2]
[362463885,1748316633529,-438.2588059,0.00019395,2]
[362463886,1748316633539,-430.0,0.00019395,2]
[362463887,1748316633548,-430.0,0.00019395,2]
[362463888,1748316633558,-430.0,0.00019395,2]
[362463889,1748316633567,-169.61286523,0.00019395,2]
[362463890,1748316633577,-430.0,0.00019395,2]
[362463891,1748316633587,-430.0,0.00019395,2]
[362463892,1748316633596,-442.01769276,0.00019395,2]
[362463893,1748316633606,-470.51971962,0.00019395,2]
[362463894,1748316633616,-445.26380461,0.00019395,2]
[362463895,1748316633625,-430.0,0.00019395,2]
[362463896,1748316633635,-430.0,0.00019395,2]
[362463897,1748316633644,-453.19001993,0.00019395,2]
[362463898,1748316633654,-430.0,0.00019395,2]
[362463899,1748316633665,-430.0,0.00019395,2]
[362463900,1748316633675,-430.0,0.00019395,2]
[362463901,1748316633686,-540.45,0.00019395,2]
[362463902,1748316633696,-430.0,0.00019395,2]
[362463903,1748316633706,-430.0,0.00019395,2]
[362463904,1748316633715,-430.0,0.00019395,2]
[362463905,1748316633729,-430.0,0.00019395,2]
[362463906,1748316633738,-430.0,0.00019396,2]
[362463907,1748316633748,-171.28734707,0.00019396,2]
[362463908,1748316633758,-430.0,0.00019396,2]
[362463909,1748316633768,-430.0,0.00019396,2]
[362463910,1748316633778,-430.0,0.00019396,2]
[362463911,1748316634005,-430.0,0.00019396,2]
[362463912,1748316634016,-430.0,0.00019396,2]
[362463913,1748316634026,-430.0,0.00019396,2]
[362463914,1748316634038,-430.0,0.00019396,2]
[362463915,1748316634047,-430.0,0.00019396,2]
[362463916,1748316634057,-430.0,0.00019396,2]
[362463917,1748316634067,-430.0,0.00019396,2]
[362463918,1748316634077,-430.0,0.00019396,2]
[362463919,1748316634086,-526.94,0.00019396,2]
[362463920,1748316634096,-322.95487975,0.00019397,2]
[362463921,1748316634106,-430.0,0.00019397,2]
[362463922,1748316634115,-441.95559827,0.00019397,2]
[362463923,1748316634125,-430.0,0.00019397,2]
[362463924,1748316634134,-430.0,0.00019397,2]
[362463925,1748316634144,-430.0,0.00019397,2]
[362463926,1748316634154,-495.33866964,0.00019397,2]
[362463927,1748316634164,-430.0,0.00019397,2]
[362463928,1748316634173,-455.82626205,0.00019397,2]
[362463929,1748316634183,-226.9805444,0.00019397,2]
[362463930,1748316634195,-430.0,0.00019397,2]
[362463931,1748316634204,-430.0,0.00019397,2]
[362463932,1748316634215,-430.0,0.00019397,2]
[362463933,1748316634224,-430.0,0.00019397,2]
[362463934,1748316634234,-442.48814772,0.00019397,2]
[362463935,1748316634244,-430.0,0.00019397,2]
[362463936,1748316634254,-430.0,0.00019397,2]
[362463937,1748316634263,-430.0,0.00019397,2]
[362463938,1748316634274,-430.0,0.00019397,2]
[362463939,1748316634284,-430.0,0.00019397,2]
[362463940,1748316634294,-434.94814597,0.00019397,2]
[362463941,1748316634304,-430.0,0.00019397,2]
[362463942,1748316634314,-430.0,0.00019397,2]
[362463943,1748316634324,-430.0,0.00019397,2]
[362463944,1748316634335,-430.0,0.00019397,2]
[362463945,1748316634345,-430.0,0.00019397,2]
[362463946,1748316634355,-471.994809,0.00019397,2]
[362463947,1748316634365,-430.0,0.00019397,2]
[362463948,1748316634375,-440.26183374,0.00019397,2]
[362463949,1748316634385,-430.0,0.00019397,2]
[362463950,1748316634395,-430.0,0.00019397,2]
[362463951,1748316634405,-430.0,0.00019397,2]
[362463952,1748316634415,-430.0,0.00019397,2]
[362463953,1748316634425,-430.0,0.00019397,2]
[362463954,1748316634435,-441.31971869,0.00019397,2]
[362463955,1748316634444,-430.0,0.00019397,2]
[362463956,1748316634455,-430.0,0.00019397,2]
[362463957,1748316634464,-430.0,0.00019397,2]
[362463958,1748316634475,-430.0,0.00019397,2]
[362463959,1748316634485,-430.0,0.00019397,2]
[362463960,1748316634495,-430.0,0.00019397,2]
[362463961,1748316634505,-430.0,0.00019397,2]
[362463962,1748316634516,-442.68265901,0.00019397,2]
[362463963,1748316634526,-430.0,0.00019397,2]
[362463964,1748316634535,-430.0,0.00019397,2]
[362463965,1748316634545,-430.0,0.00019397,2]
[362463966,1748316634555,-430.0,0.00019397,2]
[362463967,1748316634564,-430.0,0.00019397,2]
[362463968,1748316634574,-430.0,0.00019397,2]
[362463969,1748316634584,-445.14670364,0.00019397,2]
[362463970,1748316634594,-430.0,0.00019397,2]
[362463971,1748316634603,-451.50363553,0.00019397,2]
[362463972,1748316634613,-500.0,0.00019398,2]
[362463973,1748316634623,-430.0,0.00019398,2]
[362463974,1748316634633,-430.0,0.00019398,2]
[362463975,1748316634642,-439.33448332,0.00019398,2]
[362463976,1748316634652,-430.0,0.00019398,2]
[362463977,1748316634661,-430.0,0.00019398,2]
[362463978,1748316634672,-460.55163001,0.00019398,2]
[362463979,1748316634681,-430.0,0.00019398,2]
[362463980,1748316634691,-196.283637,0.00019436,2]
[362463981,1748316634703,-231.11871393,0.00019571,2]
[362463982,1748316634712,-430.0,0.00019665,2]
[362463983,1748316634727,-486.98,0.00019665,2]
[362463984,1748316634737,-430.0,0.00019665,2]
[362463985,1748316634747,-430.0,0.00019665,2]
[362463986,1748316634756,-672.78,0.00019665,2]
[362463987,1748316634767,-360.75622595,0.00019666,2]
[362463988,1748316634776,-743.35,0.00019666,2]
[362463989,1748316634788,-430.0,0.00019666,2]
[362463990,1748316634799,-430.0,0.00019666,2]
[362463991,1748316634810,-951.72,0.00019666,2]
[362463992,1748316634820,-441.08,0.00019666,2]
[362463993,1748316634831,-430.0,0.00019666,2]
[362463994,1748316634840,-430.0,0.00019666,2]
[362463995,1748316634851,-430.0,0.00019666,2]
[362463996,1748316634860,-430.0,0.00019666,2]
[362463997,1748316634869,-430.0,0.00019666,2]
[362463998,1748316634880,-430.0,0.00019666,2]
[362463999,1748316634890,-430.0,0.00019666,2]
[362464000,1748316634900,-430.0,0.00019666,2]
[362464001,1748316634910,-430.0,0.00019666,2]
[362464002,1748316635038,-430.0,0.00019666,2]
[362464003,1748316635047,-430.0,0.00019666,2]
[362464004,1748316635057,-430.0,0.00019666,2]
[362464005,1748316635067,-430.0,0.00019666,2]
[362464006,1748316635077,-430.0,0.00019669,2]
[362464007,1748316635087,-430.0,0.00019669,2]
[362464008,1748316635097,-430.0,0.00019669,2]
[362464009,1748316635108,-430.0,0.00019669,2]
[362464010,1748316635118,-430.0,0.00019669,2]
[362464011,1748316635128,-430.0,0.00019669,2]
[362464012,1748316635137,-430.0,0.00019669,2]
[362464013,1748316635147,-509.17725696,0.00019669,2]
[362464014,1748316635156,-430.0,0.00019669,2]
[362464015,1748316635166,-440.99535333,0.00019669,2]
[362464016,1748316635176,-440.42917571,0.00019669,2]
[362464017,1748316635186,-430.0,0.00019669,2]
[362464018,1748316635195,-466.43586066,0.00019669,2]
[362464019,1748316635204,-430.0,0.00019669,2]
[362464020,1748316635214,-451.36961838,0.00019669,2]
[362464021,1748316635223,-558.49557761,0.00019669,2]
[362464022,1748316635233,-444.67390775,0.00019669,2]
[362464023,1748316635242,-430.0,0.00019669,2]
[362464024,1748316635252,-430.0,0.00019669,2]
[362464025,1748316635262,-430.0,0.00019669,2]
[362464026,1748316635271,-430.0,0.00019669,2]
[362464027,1748316635280,-442.38147107,0.00019669,2]
[362464028,1748316635289,-430.0,0.00019669,2]
[362464029,1748316635298,-430.0,0.00019669,2]
[362464030,1748316635308,-430.0,0.00019669,2]
[362464031,1748316635317,-430.0,0.00019669,2]
[362464032,1748316635326,-440.37215013,0.00019669,2]
[362464033,1748316635335,-430.0,0.00019669,2]
[362464034,1748316635345,-430.0,0.00019669,2]
[362464035,1748316635355,-430.0,0.00019669,2]
[362464036,1748316635364,-430.0,0.00019669,2]
[362464037,1748316635373,-430.0,0.00019669,2]
[362464038,1748316635383,-430.0,0.00019669,2]
[362464039,1748316635392,-430.0,0.00019669,2]
[362464040,1748316635401,-430.0,0.00019669,2]
[362464041,1748316635410,-540.45,0.00019669,2]
[362464042,1748316635420,-430.0,0.00019669,2]
[362464043,1748316635429,-430.0,0.00019669,2]
[362464044,1748316635438,-430.0,0.0001967,2]
[362464045,1748316635447,-430.0,0.0001967,2]
[362464046,1748316635457,-430.0,0.0001967,2]
[362464047,1748316635467,-430.0,0.0001967,2]
[362464048,1748316635476,-430.0,0.0001967,2]
[362464049,1748316635485,-430.0,0.0001967,2]
[362464050,1748316635495,-430.0,0.0001967,2]
[362464051,1748316635504,-430.0,0.0001967,2]
[362464052,1748316635514,-430.0,0.0001967,2]
[362464053,1748316635523,-430.0,0.0001967,2]
[362464054,1748316635533,-430.0,0.0001967,2]
[362464055,1748316635542,-208.48437523,0.0001967,2]
[362464056,1748316635552,-430.0,0.0001967,2]
[362464057,1748316635562,-526.94,0.0001967,2]
[362464058,1748316635572,-430.0,0.00019671,2]
[362464059,1748316635581,-456.32235231,0.00019671,2]
[362464060,1748316635591,-489.21257723,0.00019671,2]
[362464061,1748316635602,-430.0,0.00019671,2]
[362464062,1748316635611,-430.0,0.00019671,2]
[362464063,1748316635621,-457.67069498,0.00019671,2]
[362464064,1748316635632,-430.0,0.00019671,2]
[362464065,1748316635642,-440.44556495,0.00019671,2]
[362464066,1748316635654,-430.0,0.00019671,2]
[362464067,1748316635663,-430.0,0.00019671,2]
[362464068,1748316635674,-430.0,0.00019671,2]
[362464069,1748316635684,-430.0,0.00019671,2]
[362464070,1748316635695,-430.0,0.00019671,2]
[362464071,1748316635706,-430.0,0.00019671,2]
[362464072,1748316635717,-433.20169007,0.00019671,2]
[362464073,1748316635731,-430.0,0.00019671,2]
[362464074,1748316635740,-430.0,0.00019671,2]
[362464075,1748316635750,-440.43422458,0.00019671,2]
[362464076,1748316635760,-430.0,0.00019671,2]
[362464077,1748316635772,-461.06129069,0.00019671,2]
[362464078,1748316635784,-430.0,0.00019671,2]
[362464079,1748316635793,-433.96709743,0.00019671,2]
[362464080,1748316635808,-430.0,0.00019671,2]
[362464081,1748316635819,-470.0,0.00019671,2]
[362464082,1748316635830,-484.3434833,0.00019671,2]
[362464083,1748316635840,-430.0,0.00019671,2]
[362464084,1748316635850,-430.0,0.00019671,2]
[362464085,1748316635859,-430.0,0.00019671,2]
[362464086,1748316635868,-446.13870317,0.00019671,2]
[362464087,1748316635877,-500.71301178,0.00019671,2]
[362464088,1748316635889,-430.0,0.00019671,2]
[362464089,1748316635898,-430.0,0.00019671,2]
[362464090,1748316635908,-526.50479024,0.00019671,2]
[362464091,1748316635918,-430.0,0.00019671,2]
[362464092,1748316635927,-516.16789868,0.00019671,2]
[362464093,1748316635936,-431.34465031,0.00019671,2]
[362464094,1748316635945,-500.0,0.00019672,2]
[362464095,1748316635955,-430.0,0.00019672,2]
[362464096,1748316635965,-430.0,0.00019672,2]
[362464097,1748316635974,-370.56343716,0.00019672,2]
[362464098,1748316635984,-430.0,0.00019672,2]
[362464099,1748316635994,-150.0,0.00019782,2]
[362464100,1748316636003,-203.91913958,0.00019808,2]
[362464101,1748316636013,-500.0,0.00019879,2]
[362464102,1748316636023,-165.41945517,0.00019879,2]
[362464103,1748316636032,-628.37199564,0.00019906,2]
[362464104,1748316636042,-430.0,0.00019939,2]
[362464105,1748316636051,-672.78,0.00019939,2]
[362464106,1748316636061,-743.35,0.0001994,2]
[362464107,1748316636070,-430.0,0.0001994,2]
[362464108,1748316636080,-430.0,0.0001994,2]
[362464109,1748316636090,-951.72,0.0001994,2]
[362464110,1748316636101,-441.08,0.0001994,2]
[362464111,1748316636110,-430.0,0.0001994,2]
[362464112,1748316636120,-430.0,0.0001994,2]
[362464113,1748316636130,-430.0,0.0001994,2]
[362464114,1748316636139,-430.0,0.0001994,2]
[362464115,1748316636149,-430.0,0.0001994,2]
[362464116,1748316636158,-430.0,0.0001994,2]
[362464117,1748316636168,-430.0,0.0001994,2]
[362464118,1748316636177,-430.0,0.0001994,2]
[362464119,1748316636188,-430.0,0.0001994,2]
[362464120,1748316636197,-430.0,0.0001994,2]
[362464121,1748316636207,-430.0,0.0001994,2]
[362464122,1748316636216,-448.68769286,0.0001994,2]
[362464123,1748316636226,-283.14183753,0.00019943,2]
[362464124,1748316636236,-246.31901486,0.00019943,2]
[362464125,1748316636246,-430.0,0.00019943,2]
[362464126,1748316636256,-430.0,0.00019943,2]
[362464127,1748316636266,-430.0,0.00019943,2]
[362464128,1748316636276,-430.0,0.00019943,2]
[362464129,1748316636285,-421.91049449,0.00019943,2]
[362464130,1748316636295,-430.0,0.00019943,2]
[362464131,1748316636305,-430.0,0.00019943,2]
[362464132,1748316636314,-430.0,0.00019943,2]
[362464133,1748316636323,-156.70973206,0.00019943,2]
[362464134,1748316636333,-396.57773825,0.00019943,2]
[362464135,1748316636343,-430.0,0.00019943,2]
[362464136,1748316636355,-430.0,0.00019943,2]